[Event "Live Chess"]
[Site "Chess.com"]
[Date "2024.06.01"]
[Round "-"]
[White "hapehansen"]
[Black "Queensandpawns"]
[Result "0-1"]
[WhiteElo "2242"]
[BlackElo "2474"]
[TimeControl "300"]
[EndTime "10:07:21 PDT"]
[Termination "Queensandpawns won by resignation"]

1. c4 {[%clk 0:04:54.2]} 1... b5 {[%clk 0:04:58.1]} 2. cxb5 {[%clk 0:04:51.7]}
2... a6 {[%clk 0:04:58]} 3. bxa6 {[%clk 0:04:47.3]} 3... Bxa6 {[%clk 0:04:57.9]}
4. Nc3 {[%clk 0:04:45.9]} 4... Nf6 {[%clk 0:04:56.9]} 5. g3 {[%clk 0:04:43.2]}
5... d5 {[%clk 0:04:56.1]} 6. d4 {[%clk 0:04:38.9]} 6... c6 {[%clk 0:04:55.6]}
7. Bg2 {[%clk 0:04:37.4]} 7... Nbd7 {[%clk 0:04:55]} 8. Nf3 {[%clk 0:04:36.6]}
8... g6 {[%clk 0:04:53.5]} 9. O-O {[%clk 0:04:35.5]} 9... Bg7 {[%clk 0:04:52.7]}
10. b3 {[%clk 0:04:27.5]} 10... O-O {[%clk 0:04:51.1]} 11. Bb2 {[%clk
0:04:26.2]} 11... Ne4 {[%clk 0:04:50.6]} 12. Rc1 {[%clk 0:04:16.8]} 12... c5
{[%clk 0:04:43.9]} 13. Nxd5 {[%clk 0:04:08.7]} 13... Rc8 {[%clk 0:04:34.4]} 14.
Ne5 {[%clk 0:03:51.7]} 14... Nxe5 {[%clk 0:04:29]} 15. dxe5 {[%clk 0:03:48.5]}
15... Ng5 {[%clk 0:04:26.8]} 16. Qd2 {[%clk 0:03:34.9]} 16... e6 {[%clk
0:04:22.5]} 17. h4 {[%clk 0:03:13.8]} 17... exd5 {[%clk 0:04:14.2]} 18. hxg5
{[%clk 0:03:12.5]} 18... d4 {[%clk 0:04:14.1]} 19. f4 {[%clk 0:03:03.7]} 19...
Qd7 {[%clk 0:04:06.6]} 20. Ba3 {[%clk 0:02:57.6]} 20... Qb5 {[%clk 0:03:57.6]}
21. Bf3 {[%clk 0:02:48]} 21... Rfd8 {[%clk 0:03:55.9]} 22. Rc4 {[%clk
0:02:35.1]} 22... Qb6 {[%clk 0:03:41.6]} 23. Rfc1 {[%clk 0:02:27.2]} 23... Bxc4
{[%clk 0:03:28.1]} 24. Rxc4 {[%clk 0:02:26.1]} 24... Qb5 {[%clk 0:03:26.1]} 25.
Qc2 {[%clk 0:02:17.3]} 25... Bf8 {[%clk 0:03:18.7]} 26. b4 {[%clk 0:02:05.5]}
26... Ra8 {[%clk 0:03:09.9]} 27. Bxa8 {[%clk 0:01:59.3]} 27... Rxa8 {[%clk
0:03:09.8]} 28. Bc1 {[%clk 0:01:57.9]} 28... cxb4 {[%clk 0:03:05.5]} 29. Kf1
{[%clk 0:01:35.8]} 29... Qd5 {[%clk 0:02:58.4]} 30. Kg1 {[%clk 0:01:09.9]} 30...
Qa5 {[%clk 0:02:49]} 31. Kh2 {[%clk 0:01:06]} 31... Qxa2 {[%clk 0:02:48.1]} 32.
Qxa2 {[%clk 0:01:03.8]} 32... Rxa2 {[%clk 0:02:48]} 33. Rxd4 {[%clk 0:00:58.9]}
33... Rxe2+ {[%clk 0:02:47.2]} 34. Kh3 {[%clk 0:00:56.8]} 34... b3 {[%clk
0:02:46.4]} 35. Rd8 {[%clk 0:00:54]} 35... b2 {[%clk 0:02:44.3]} 0-1

[Event "Live Chess"]
[Site "Chess.com"]
[Date "2024.06.01"]
[Round "-"]
[White "McFim"]
[Black "Duke_of_Bebington"]
[Result "0-1"]
[WhiteElo "1572"]
[BlackElo "1605"]
[TimeControl "300"]
[EndTime "10:07:39 PDT"]
[Termination "Duke_of_Bebington won on time"]

1. e4 {[%clk 0:04:52.7]} 1... e5 {[%clk 0:04:58.9]} 2. Nf3 {[%clk 0:04:51.2]}
2... Nf6 {[%clk 0:04:58.2]} 3. Nxe5 {[%clk 0:04:48.6]} 3... d6 {[%clk 0:04:56]}
4. Nf3 {[%clk 0:04:47.3]} 4... Nxe4 {[%clk 0:04:55.3]} 5. d3 {[%clk 0:04:46.3]}
5... Nf6 {[%clk 0:04:54]} 6. d4 {[%clk 0:04:45.3]} 6... d5 {[%clk 0:04:53.1]} 7.
Bd3 {[%clk 0:04:44.6]} 7... Bd6 {[%clk 0:04:51.7]} 8. O-O {[%clk 0:04:43.3]}
8... O-O {[%clk 0:04:50.8]} 9. Bg5 {[%clk 0:04:41.1]} 9... Nbd7 {[%clk
0:04:45.5]} 10. Re1 {[%clk 0:04:36.9]} 10... c6 {[%clk 0:04:43.7]} 11. Nbd2
{[%clk 0:04:33.2]} 11... Qb6 {[%clk 0:04:42.4]} 12. Rb1 {[%clk 0:04:25.7]} 12...
h6 {[%clk 0:04:36.8]} 13. Bh4 {[%clk 0:04:23.5]} 13... c5 {[%clk 0:04:23.7]} 14.
dxc5 {[%clk 0:04:21.1]} 14... Bxc5 {[%clk 0:04:23.6]} 15. Nb3 {[%clk 0:04:10]}
15... Rd8 {[%clk 0:03:57.5]} 16. c3 {[%clk 0:04:07]} 16... a6 {[%clk 0:03:53.9]}
17. Nxc5 {[%clk 0:03:54.4]} 17... Nxc5 {[%clk 0:03:52.7]} 18. Bc2 {[%clk
0:03:53.5]} 18... Nce4 {[%clk 0:03:49.8]} 19. Nd4 {[%clk 0:03:44.7]} 19... Bd7
{[%clk 0:03:37.8]} 20. Qd3 {[%clk 0:03:02.9]} 20... Bb5 {[%clk 0:03:24.7]} 21.
Nxb5 {[%clk 0:03:00.4]} 21... Qxb5 {[%clk 0:03:24.6]} 22. Qxb5 {[%clk
0:02:52.7]} 22... axb5 {[%clk 0:03:23.3]} 23. a3 {[%clk 0:02:45.6]} 23... g5
{[%clk 0:03:08.5]} 24. Bg3 {[%clk 0:02:43.9]} 24... Re8 {[%clk 0:03:01.1]} 25.
Bd3 {[%clk 0:02:26.4]} 25... Nd2 {[%clk 0:02:56.1]} 26. Rbd1 {[%clk 0:02:12.1]}
26... Nc4 {[%clk 0:02:54.9]} 27. b3 {[%clk 0:01:55.7]} 27... Nxa3 {[%clk
0:02:45.6]} 28. Rxe8+ {[%clk 0:01:48.5]} 28... Rxe8 {[%clk 0:02:43.7]} 29. Ra1
{[%clk 0:01:46.3]} 29... b4 {[%clk 0:02:25.2]} 30. cxb4 {[%clk 0:01:43.7]} 30...
Ra8 {[%clk 0:02:21.4]} 31. Be5 {[%clk 0:01:30.8]} 31... Ne4 {[%clk 0:02:20]} 32.
Bb2 {[%clk 0:01:24.5]} 32... Nd2 {[%clk 0:02:07]} 33. Rxa3 {[%clk 0:01:12.9]}
33... Rxa3 {[%clk 0:02:03.9]} 34. Bxa3 {[%clk 0:01:10.5]} 34... Nxb3 {[%clk
0:02:03.4]} 35. Bb2 {[%clk 0:01:00.2]} 35... f5 {[%clk 0:02:01.8]} 36. Bxf5
{[%clk 0:00:55.4]} 36... Kf7 {[%clk 0:02:00.6]} 37. Bc2 {[%clk 0:00:50.5]} 37...
Nd2 {[%clk 0:01:56.8]} 38. Bc3 {[%clk 0:00:47.6]} 38... Nc4 {[%clk 0:01:55.7]}
39. b5 {[%clk 0:00:37.5]} 39... Ke6 {[%clk 0:01:54.5]} 40. h3 {[%clk 0:00:26.1]}
40... Kd7 {[%clk 0:01:52.9]} 41. Bg7 {[%clk 0:00:23.4]} 41... h5 {[%clk
0:01:51]} 42. Bf5+ {[%clk 0:00:20.3]} 42... Kc7 {[%clk 0:01:49]} 43. Bf6 {[%clk
0:00:18.2]} 43... Kb6 {[%clk 0:01:47.4]} 44. Bxg5 {[%clk 0:00:16.7]} 44... Kxb5
{[%clk 0:01:46.2]} 45. Bg6 {[%clk 0:00:14.9]} 45... Kc5 {[%clk 0:01:42.9]} 46.
Bxh5 {[%clk 0:00:14]} 46... b5 {[%clk 0:01:42.5]} 47. Be7+ {[%clk 0:00:13.2]}
47... Kc6 {[%clk 0:01:40.3]} 48. Bf7 {[%clk 0:00:11.4]} 48... Ne5 {[%clk
0:01:38.4]} 49. Be6 {[%clk 0:00:10.1]} 49... d4 {[%clk 0:01:34.5]} 50. h4 {[%clk
0:00:08.5]} 50... d3 {[%clk 0:01:33.2]} 51. Bb3 {[%clk 0:00:06.9]} 51... d2
{[%clk 0:01:28]} 52. Kf1 {[%clk 0:00:05.7]} 52... Ng4 {[%clk 0:01:24.2]} 53. f3
{[%clk 0:00:03.8]} 53... Ne3+ {[%clk 0:01:20.5]} 54. Ke2 {[%clk 0:00:02.9]}
54... Nxg2 {[%clk 0:01:19.5]} 55. h5 {[%clk 0:00:02]} 55... Nf4+ {[%clk
0:01:17.9]} 56. Kxd2 {[%clk 0:00:01]} 56... Nxh5 {[%clk 0:01:17.5]} 0-1

[Event "Live Chess"]
[Site "Chess.com"]
[Date "2024.06.01"]
[Round "-"]
[White "14141409"]
[Black "Ninifu"]
[Result "1-0"]
[WhiteElo "2562"]
[BlackElo "2052"]
[TimeControl "300"]
[EndTime "10:07:46 PDT"]
[Termination "14141409 won by resignation"]

1. e4 {[%clk 0:04:58.4]} 1... d5 {[%clk 0:04:58]} 2. exd5 {[%clk 0:04:57]} 2...
Nf6 {[%clk 0:04:54.5]} 3. Nc3 {[%clk 0:04:56.5]} 3... Nxd5 {[%clk 0:04:52.9]} 4.
Bc4 {[%clk 0:04:56]} 4... Nxc3 {[%clk 0:04:50.6]} 5. Qf3 {[%clk 0:04:54.3]} 5...
e6 {[%clk 0:04:49.6]} 6. dxc3 {[%clk 0:04:53]} 6... Qf6 {[%clk 0:04:49]} 7. Qe2
{[%clk 0:04:51.2]} 7... Be7 {[%clk 0:04:47.3]} 8. Nf3 {[%clk 0:04:50.7]} 8...
Nc6 {[%clk 0:04:38.5]} 9. g4 {[%clk 0:04:44.1]} 9... h6 {[%clk 0:04:22.9]} 10.
h4 {[%clk 0:04:41.9]} 10... Bd6 {[%clk 0:04:04.1]} 11. g5 {[%clk 0:04:39.6]}
11... Qe7 {[%clk 0:03:58]} 12. Be3 {[%clk 0:04:37]} 12... Bd7 {[%clk 0:03:53.8]}
13. O-O-O {[%clk 0:04:35.9]} 13... O-O-O {[%clk 0:03:52.9]} 14. Nd4 {[%clk
0:04:33.9]} 14... e5 {[%clk 0:03:33.3]} 15. Nxc6 {[%clk 0:04:21.7]} 15... Bxc6
{[%clk 0:03:31.3]} 16. Rhg1 {[%clk 0:04:20.3]} 16... h5 {[%clk 0:03:29.4]} 17.
g6 {[%clk 0:04:18.2]} 17... Qf6 {[%clk 0:02:47.9]} 18. Bg5 {[%clk 0:04:16.2]}
18... Bf3 {[%clk 0:02:39.8]} 19. Bxf6 {[%clk 0:03:46.4]} 19... Bxe2 {[%clk
0:02:38.3]} 20. Bxe2 {[%clk 0:03:46]} 20... gxf6 {[%clk 0:02:35.1]} 21. g7
{[%clk 0:03:45.4]} 21... Rhg8 {[%clk 0:02:28.2]} 22. Bxh5 {[%clk 0:03:44.8]}
22... Rd7 {[%clk 0:02:22.6]} 23. Bg4 {[%clk 0:03:43.5]} 23... Kd8 {[%clk
0:02:07.8]} 24. Bxd7 {[%clk 0:03:42.3]} 24... Kxd7 {[%clk 0:02:07]} 25. h5
{[%clk 0:03:41.9]} 1-0

[Event "Live Chess"]
[Site "Chess.com"]
[Date "2024.06.01"]
[Round "-"]
[White "halfberg"]
[Black "CennyddB"]
[Result "1-0"]
[WhiteElo "1901"]
[BlackElo "1133"]
[TimeControl "300"]
[EndTime "10:07:55 PDT"]
[Termination "halfberg won by resignation"]

1. e4 {[%clk 0:04:57.2]} 1... c5 {[%clk 0:04:58.8]} 2. Nf3 {[%clk 0:04:56.1]}
2... Nc6 {[%clk 0:04:57.2]} 3. d4 {[%clk 0:04:55.5]} 3... cxd4 {[%clk
0:04:55.8]} 4. Nxd4 {[%clk 0:04:55.1]} 4... e5 {[%clk 0:04:54.5]} 5. Nb5 {[%clk
0:04:53.5]} 5... d6 {[%clk 0:04:50.9]} 6. N1c3 {[%clk 0:04:52.4]} 6... Nf6
{[%clk 0:04:49.9]} 7. Nd5 {[%clk 0:04:31.5]} 7... Nxd5 {[%clk 0:04:45.7]} 8.
exd5 {[%clk 0:04:30.6]} 8... Nb8 {[%clk 0:04:44.9]} 9. c4 {[%clk 0:04:27.8]}
9... a6 {[%clk 0:04:37.7]} 10. Qa4 {[%clk 0:04:26.5]} 10... Bd7 {[%clk
0:04:35.9]} 11. Qa3 {[%clk 0:04:24.2]} 11... Be7 {[%clk 0:04:21.7]} 12. Nxd6+
{[%clk 0:04:20.2]} 12... Bxd6 {[%clk 0:04:07.5]} 13. Qxd6 {[%clk 0:04:18.8]}
13... Qe7 {[%clk 0:03:40.6]} 14. Qxe7+ {[%clk 0:04:14.5]} 14... Kxe7 {[%clk
0:03:40]} 15. Be3 {[%clk 0:04:06.8]} 15... Rc8 {[%clk 0:03:31.2]} 16. Be2 {[%clk
0:03:48.7]} 16... a5 {[%clk 0:03:28.2]} 17. O-O {[%clk 0:03:47.2]} 17... Na6
{[%clk 0:03:26.8]} 18. f4 {[%clk 0:03:37.3]} 18... f6 {[%clk 0:03:23.7]} 19.
fxe5 {[%clk 0:03:34.5]} 19... fxe5 {[%clk 0:03:21.8]} 20. Bg5+ {[%clk
0:03:33.3]} 20... Kd6 {[%clk 0:03:11.4]} 21. Rf7 {[%clk 0:03:30.6]} 21... Rg8
{[%clk 0:03:02]} 22. Be7+ {[%clk 0:03:25.1]} 22... Kc7 {[%clk 0:03:01.1]} 23.
Rc1 {[%clk 0:03:05]} 23... Be8 {[%clk 0:02:53.4]} 24. d6+ {[%clk 0:02:57.2]}
24... Kc8 {[%clk 0:02:28.9]} 25. Bg4+ {[%clk 0:02:49.3]} 25... Bd7 {[%clk
0:02:26.9]} 26. Bf3 {[%clk 0:02:24]} 26... Be8 {[%clk 0:02:22.2]} 27. Rf8 {[%clk
0:02:18.1]} 27... Rxf8 {[%clk 0:02:14.7]} 28. Bxf8 {[%clk 0:02:17]} 28... Kd7
{[%clk 0:02:06.6]} 29. c5 {[%clk 0:02:10.9]} 29... Rc8 {[%clk 0:02:00.6]} 30.
Bg4+ {[%clk 0:02:08.8]} 30... Kd8 {[%clk 0:01:59.8]} 31. Bxc8 {[%clk 0:02:06.4]}
31... Kxc8 {[%clk 0:01:59.3]} 32. Bxg7 {[%clk 0:02:02.3]} 1-0

[Event "Live Chess"]
[Site "Chess.com"]
[Date "2024.06.01"]
[Round "-"]
[White "jumush"]
[Black "Brooms1989"]
[Result "1-0"]
[WhiteElo "1742"]
[BlackElo "1067"]
[TimeControl "300"]
[EndTime "10:07:58 PDT"]
[Termination "jumush won by resignation"]

1. e4 {[%clk 0:04:54.1]} 1... e5 {[%clk 0:04:59.3]} 2. Nc3 {[%clk 0:04:49]} 2...
Nf6 {[%clk 0:04:56.2]} 3. Bc4 {[%clk 0:04:46]} 3... Nxe4 {[%clk 0:04:53.9]} 4.
Qh5 {[%clk 0:04:41.9]} 4... Nd6 {[%clk 0:04:49.8]} 5. Qxe5+ {[%clk 0:04:39.3]}
5... Qe7 {[%clk 0:04:48.8]} 6. Qxe7+ {[%clk 0:04:36.1]} 6... Bxe7 {[%clk
0:04:48.7]} 7. Bb3 {[%clk 0:04:28.3]} 7... Nf5 {[%clk 0:04:30.9]} 8. Nf3 {[%clk
0:04:23.7]} 8... O-O {[%clk 0:04:27.1]} 9. O-O {[%clk 0:04:21.1]} 9... d6 {[%clk
0:04:22.6]} 10. d4 {[%clk 0:04:19]} 10... Nc6 {[%clk 0:04:16]} 11. d5 {[%clk
0:04:16.6]} 11... Ne5 {[%clk 0:04:14.4]} 12. Nd2 {[%clk 0:03:53]} 12... Nd4
{[%clk 0:03:41.3]} 13. f4 {[%clk 0:03:45.7]} 13... Nxb3 {[%clk 0:03:29.4]} 14.
Nxb3 {[%clk 0:03:41.6]} 14... Ng6 {[%clk 0:03:07.6]} 15. Be3 {[%clk 0:03:34.9]}
15... Bf5 {[%clk 0:02:53.4]} 16. Nd4 {[%clk 0:03:29.8]} 16... Bd7 {[%clk
0:02:43.8]} 17. Rae1 {[%clk 0:03:25.9]} 17... Rfe8 {[%clk 0:02:36]} 18. Nf3
{[%clk 0:03:13.2]} 18... a6 {[%clk 0:02:16.4]} 19. Rf2 {[%clk 0:03:06]} 19... b5
{[%clk 0:01:53.9]} 20. a3 {[%clk 0:03:02.3]} 20... Bf5 {[%clk 0:01:49.4]} 21.
Nd4 {[%clk 0:02:53.9]} 21... Bd7 {[%clk 0:01:47.7]} 22. f5 {[%clk 0:02:52.1]}
22... Ne5 {[%clk 0:01:43.4]} 23. Bf4 {[%clk 0:02:48.5]} 23... f6 {[%clk
0:01:32.8]} 24. Rfe2 {[%clk 0:02:35.4]} 24... c5 {[%clk 0:01:11.6]} 25. dxc6
{[%clk 0:02:30.7]} 25... Bc8 {[%clk 0:01:01]} 26. Nd5 {[%clk 0:02:20.6]} 26...
Ra7 {[%clk 0:00:50.3]} 27. h3 {[%clk 0:01:27.3]} 27... Rf8 {[%clk 0:00:27.9]}
28. g4 {[%clk 0:01:22.9]} 28... a5 {[%clk 0:00:14.5]} 29. b3 {[%clk 0:01:19.5]}
29... b4 {[%clk 0:00:11.1]} 30. Nb5 {[%clk 0:01:15.4]} 30... Nf3+ {[%clk
0:00:08.4]} 31. Kf2 {[%clk 0:01:10.7]} 31... Nxe1 {[%clk 0:00:07.7]} 32. Kxe1
{[%clk 0:01:08]} 32... Ra8 {[%clk 0:00:04.5]} 33. Nxe7+ {[%clk 0:01:05.7]} 1-0

[Event "Live Chess"]
[Site "Chess.com"]
[Date "2024.06.01"]
[Round "-"]
[White "Crowded_House"]
[Black "Mangoalo"]
[Result "1/2-1/2"]
[WhiteElo "1739"]
[BlackElo "1000"]
[TimeControl "300"]
[EndTime "10:08:04 PDT"]
[Termination "Game drawn by agreement"]

1. d4 {[%clk 0:04:56.6]} 1... c5 {[%clk 0:04:58.3]} 2. c3 {[%clk 0:04:51.3]}
2... Nc6 {[%clk 0:04:57.5]} 3. dxc5 {[%clk 0:04:49.2]} 3... Nf6 {[%clk 0:04:56]}
4. Bg5 {[%clk 0:04:46.9]} 4... e6 {[%clk 0:04:54.8]} 5. e3 {[%clk 0:04:44.5]}
5... Bxc5 {[%clk 0:04:53.3]} 6. Bd3 {[%clk 0:04:41.1]} 6... h6 {[%clk
0:04:50.8]} 7. Bh4 {[%clk 0:04:39.6]} 7... O-O {[%clk 0:04:49.1]} 8. Nf3 {[%clk
0:04:38.7]} 8... d5 {[%clk 0:04:48.3]} 9. O-O {[%clk 0:04:34.7]} 9... b5 {[%clk
0:04:47.1]} 10. Nbd2 {[%clk 0:04:30.9]} 10... b4 {[%clk 0:04:45.5]} 11. Nb3
{[%clk 0:04:15.5]} 11... Bb6 {[%clk 0:04:41.2]} 12. Rc1 {[%clk 0:04:02.5]} 12...
Bb7 {[%clk 0:04:37.5]} 13. Bg3 {[%clk 0:03:53.6]} 13... Rc8 {[%clk 0:04:34.1]}
14. Nfd4 {[%clk 0:03:52.3]} 14... Nxd4 {[%clk 0:04:32.8]} 15. Nxd4 {[%clk
0:03:51.4]} 15... bxc3 {[%clk 0:04:27.8]} 16. Rxc3 {[%clk 0:03:44.2]} 16... Rxc3
{[%clk 0:04:25]} 17. bxc3 {[%clk 0:03:42.9]} 17... Bxd4 {[%clk 0:04:23.8]} 18.
cxd4 {[%clk 0:03:41.4]} 18... Ne4 {[%clk 0:04:20.3]} 19. Bxe4 {[%clk 0:03:37.1]}
19... dxe4 {[%clk 0:04:20.2]} 20. Qb1 {[%clk 0:03:23.7]} 20... Bd5 {[%clk
0:04:07.3]} 21. a3 {[%clk 0:03:15.1]} 21... f5 {[%clk 0:04:05.3]} 22. Be5 {[%clk
0:03:12.2]} 22... Qg5 {[%clk 0:04:02.1]} 23. Bf4 {[%clk 0:03:07.5]} 23... Qg6
{[%clk 0:03:56.8]} 24. Qb5 {[%clk 0:02:54.1]} 24... h5 {[%clk 0:03:52.8]} 25. h4
{[%clk 0:02:43.7]} 25... Qg4 {[%clk 0:03:42.9]} 26. g3 {[%clk 0:02:36.1]} 26...
Kh7 {[%clk 0:03:37.6]} 27. Re1 {[%clk 0:02:27]} 27... Rf7 {[%clk 0:03:35]} 28.
Qe2 {[%clk 0:02:24.5]} 28... Qg6 {[%clk 0:03:29.7]} 29. Qa6 {[%clk 0:02:17.1]}
1/2-1/2

[Event "Live Chess"]
[Site "Chess.com"]
[Date "2024.06.01"]
[Round "-"]
[White "f4nomore"]
[Black "ACM42"]
[Result "0-1"]
[WhiteElo "1193"]
[BlackElo "2212"]
[TimeControl "300"]
[EndTime "10:08:08 PDT"]
[Termination "ACM42 won by resignation"]

1. d4 {[%clk 0:04:55.4]} 1... Nf6 {[%clk 0:04:40.9]} 2. Bg5 {[%clk 0:04:52.4]}
2... Ne4 {[%clk 0:04:29.9]} 3. Bf4 {[%clk 0:04:50.7]} 3... d5 {[%clk 0:04:28.3]}
4. f3 {[%clk 0:04:45.1]} 4... Nd6 {[%clk 0:04:25.6]} 5. c3 {[%clk 0:04:40.9]}
5... g6 {[%clk 0:04:23.3]} 6. e3 {[%clk 0:04:38.1]} 6... Bg7 {[%clk 0:04:21.6]}
7. Ne2 {[%clk 0:04:36.4]} 7... O-O {[%clk 0:04:20.3]} 8. g3 {[%clk 0:04:35.2]}
8... b6 {[%clk 0:04:19.3]} 9. Bg2 {[%clk 0:04:33.2]} 9... c5 {[%clk 0:04:18.5]}
10. O-O {[%clk 0:04:28.7]} 10... Nc6 {[%clk 0:04:16.5]} 11. e4 {[%clk
0:04:05.9]} 11... cxd4 {[%clk 0:04:03.6]} 12. e5 {[%clk 0:04:01.3]} 12... Nxe5
{[%clk 0:03:55.5]} 13. cxd4 {[%clk 0:03:55.4]} 13... Nc6 {[%clk 0:03:45.9]} 14.
Be3 {[%clk 0:03:49.6]} 14... Ba6 {[%clk 0:03:40.1]} 15. Nbc3 {[%clk 0:03:45.9]}
15... Rc8 {[%clk 0:03:37]} 16. Qc1 {[%clk 0:03:44]} 16... Nf5 {[%clk 0:03:34.5]}
17. Bf2 {[%clk 0:03:32.7]} 17... Ncxd4 {[%clk 0:03:26.8]} 18. Bxd4 {[%clk
0:03:23.7]} 18... Nxd4 {[%clk 0:03:19.1]} 19. Re1 {[%clk 0:03:18.5]} 19... Nxe2+
{[%clk 0:03:16.7]} 20. Nxe2 {[%clk 0:03:15.5]} 20... Rxc1 {[%clk 0:03:15.6]} 21.
Raxc1 {[%clk 0:03:12.6]} 21... Bxb2 {[%clk 0:03:14.1]} 0-1

[Event "Live Chess"]
[Site "Chess.com"]
[Date "2024.06.01"]
[Round "-"]
[White "defenderalist"]
[Black "Bazzza132"]
[Result "0-1"]
[WhiteElo "1495"]
[BlackElo "1679"]
[TimeControl "300"]
[EndTime "10:08:32 PDT"]
[Termination "Bazzza132 won by resignation"]

1. e4 {[%clk 0:04:59]} 1... e5 {[%clk 0:04:58.9]} 2. f4 {[%clk 0:04:57.7]} 2...
exf4 {[%clk 0:04:57.2]} 3. Nf3 {[%clk 0:04:57.2]} 3... Nf6 {[%clk 0:04:56.7]} 4.
e5 {[%clk 0:04:53.1]} 4... Nh5 {[%clk 0:04:55]} 5. Bc4 {[%clk 0:04:50]} 5... d5
{[%clk 0:04:51.3]} 6. exd6 {[%clk 0:04:48.4]} 6... Bxd6 {[%clk 0:04:44]} 7. O-O
{[%clk 0:04:44.4]} 7... O-O {[%clk 0:04:34.9]} 8. d4 {[%clk 0:04:43.3]} 8... Qf6
{[%clk 0:04:30.6]} 9. Ne5 {[%clk 0:04:38.4]} 9... Bxe5 {[%clk 0:04:28]} 10. dxe5
{[%clk 0:04:36]} 10... Qxe5 {[%clk 0:04:26.7]} 11. Nc3 {[%clk 0:04:21.4]} 11...
Qc5+ {[%clk 0:04:23.4]} 12. Kh1 {[%clk 0:04:15.4]} 12... Ng3+ {[%clk 0:04:20]}
13. hxg3 {[%clk 0:04:13.2]} 13... Qxc4 {[%clk 0:04:19.4]} 14. Rxf4 {[%clk
0:04:06.2]} 14... Qc5 {[%clk 0:04:12.9]} 15. Ne4 {[%clk 0:03:59.2]} 15... Qc6
{[%clk 0:04:10.6]} 16. Rh4 {[%clk 0:03:52.6]} 16... Bf5 {[%clk 0:04:07.7]} 17.
Ng5 {[%clk 0:03:28.4]} 17... Bxc2 {[%clk 0:03:56.8]} 18. Qf1 {[%clk 0:02:53.9]}
18... Na6 {[%clk 0:03:49.1]} 19. Bd2 {[%clk 0:02:46.8]} 19... Rad8 {[%clk
0:03:42]} 20. Bc3 {[%clk 0:02:39.8]} 20... Bd3 {[%clk 0:03:36]} 21. Qf4 {[%clk
0:02:14]} 21... h6 {[%clk 0:03:23.9]} 22. Nf3 {[%clk 0:01:55.7]} 22... Nc5
{[%clk 0:03:12.7]} 23. Ne5 {[%clk 0:01:30.9]} 23... Qe6 {[%clk 0:02:56.3]} 24.
Re1 {[%clk 0:01:24]} 24... g5 {[%clk 0:02:49.9]} 25. Qg4 {[%clk 0:01:01.3]}
25... Qxg4 {[%clk 0:02:45.5]} 26. Rxg4 {[%clk 0:00:58.4]} 26... Bf5 {[%clk
0:02:43.6]} 27. Rc4 {[%clk 0:00:48.2]} 27... Ne4 {[%clk 0:02:32.8]} 28. Rxc7
{[%clk 0:00:40]} 28... Nxc3 {[%clk 0:02:30.4]} 29. bxc3 {[%clk 0:00:36.7]} 29...
Rd2 {[%clk 0:02:28.5]} 30. g4 {[%clk 0:00:33.6]} 30... Be6 {[%clk 0:02:22.4]}
31. Nd7 {[%clk 0:00:25.4]} 31... Bxd7 {[%clk 0:02:17.2]} 32. Rxb7 {[%clk
0:00:20.9]} 32... Bc6 {[%clk 0:02:11.1]} 33. Rxa7 {[%clk 0:00:17.7]} 33... Rxg2
{[%clk 0:02:08.9]} 0-1

[Event "Live Chess"]
[Site "Chess.com"]
[Date "2024.06.01"]
[Round "-"]
[White "GEMdzq"]
[Black "Dhaydon19"]
[Result "0-1"]
[WhiteElo "2360"]
[BlackElo "2703"]
[TimeControl "300"]
[EndTime "10:08:38 PDT"]
[Termination "Dhaydon19 won by resignation"]

1. e4 {[%clk 0:04:57]} 1... e6 {[%clk 0:04:59.2]} 2. d4 {[%clk 0:04:55.8]} 2...
d5 {[%clk 0:04:57.3]} 3. Nc3 {[%clk 0:04:55.2]} 3... dxe4 {[%clk 0:04:56.3]} 4.
Nxe4 {[%clk 0:04:54]} 4... Be7 {[%clk 0:04:56]} 5. Nf3 {[%clk 0:04:52.1]} 5...
Nd7 {[%clk 0:04:55.5]} 6. Bd3 {[%clk 0:04:50.2]} 6... Ngf6 {[%clk 0:04:54.4]} 7.
Nxf6+ {[%clk 0:04:48]} 7... Nxf6 {[%clk 0:04:53.4]} 8. Bg5 {[%clk 0:04:46.2]}
8... O-O {[%clk 0:04:53]} 9. O-O {[%clk 0:04:44.3]} 9... b6 {[%clk 0:04:52]} 10.
Bxf6 {[%clk 0:04:40.5]} 10... Bxf6 {[%clk 0:04:51.2]} 11. Qe2 {[%clk 0:04:37.7]}
11... Bb7 {[%clk 0:04:49.8]} 12. Rad1 {[%clk 0:04:36.1]} 12... Qd5 {[%clk
0:04:47.8]} 13. Bc4 {[%clk 0:04:27.1]} 13... Qf5 {[%clk 0:04:41.8]} 14. c3
{[%clk 0:04:23.4]} 14... Rad8 {[%clk 0:04:39.4]} 15. Rfe1 {[%clk 0:04:15.4]}
15... Rd6 {[%clk 0:04:36.3]} 16. Ne5 {[%clk 0:04:06]} 16... Rfd8 {[%clk
0:04:33.1]} 17. Bd3 {[%clk 0:04:00.9]} 17... Qg5 {[%clk 0:04:30.2]} 18. f3
{[%clk 0:03:51.3]} 18... c5 {[%clk 0:04:25.6]} 19. Be4 {[%clk 0:02:58.6]} 19...
Bxe4 {[%clk 0:04:21.2]} 20. Qxe4 {[%clk 0:02:58.5]} 20... Bxe5 {[%clk 0:04:13]}
21. Qxe5 {[%clk 0:02:46.3]} 21... Qxe5 {[%clk 0:04:11.4]} 22. Rxe5 {[%clk
0:02:45.9]} 22... cxd4 {[%clk 0:04:10.5]} 23. cxd4 {[%clk 0:02:41.3]} 23... Rxd4
{[%clk 0:04:09.4]} 24. Rxd4 {[%clk 0:02:39.6]} 24... Rxd4 {[%clk 0:04:08]} 25.
Re2 {[%clk 0:02:38.8]} 25... Kf8 {[%clk 0:04:06.3]} 26. Rc2 {[%clk 0:02:37.4]}
26... Ke7 {[%clk 0:04:05.5]} 27. Rc7+ {[%clk 0:02:30.9]} 27... Rd7 {[%clk
0:04:05.1]} 28. Rc2 {[%clk 0:02:29.3]} 28... f5 {[%clk 0:04:01.9]} 29. f4 {[%clk
0:02:26.6]} 29... h6 {[%clk 0:04:00]} 30. Kf2 {[%clk 0:02:21.6]} 30... g5 {[%clk
0:03:58.8]} 31. g3 {[%clk 0:02:19]} 31... Kf6 {[%clk 0:03:54.3]} 32. Ke3 {[%clk
0:02:15.7]} 32... g4 {[%clk 0:03:52.2]} 33. Rc8 {[%clk 0:02:11.8]} 33... Rh7
{[%clk 0:03:49.3]} 34. Rf8+ {[%clk 0:02:09.7]} 34... Ke7 {[%clk 0:03:48.6]} 35.
Ra8 {[%clk 0:02:08.3]} 35... Kd6 {[%clk 0:03:47.7]} 36. Rd8+ {[%clk 0:02:05.9]}
36... Ke7 {[%clk 0:03:41.5]} 37. Ra8 {[%clk 0:02:04.7]} 37... Kf6 {[%clk
0:03:40.9]} 38. Rf8+ {[%clk 0:02:03.6]} 38... Rf7 {[%clk 0:03:39.2]} 39. Rh8
{[%clk 0:02:02.2]} 39... Kg6 {[%clk 0:03:35.5]} 40. Re8 {[%clk 0:02:01.2]} 40...
Kf6 {[%clk 0:03:31.7]} 41. Rh8 {[%clk 0:02:00.3]} 41... Re7 {[%clk 0:03:24.2]}
42. Rxh6+ {[%clk 0:01:58.6]} 42... Kg7 {[%clk 0:03:23.2]} 43. Rh5 {[%clk
0:01:55.7]} 43... Rc7 {[%clk 0:03:21]} 44. Kd2 {[%clk 0:01:48.9]} 44... Rd7+
{[%clk 0:03:19.4]} 45. Ke2 {[%clk 0:01:46.1]} 45... Rd5 {[%clk 0:03:15.7]} 46.
Rg5+ {[%clk 0:01:44.7]} 46... Kf7 {[%clk 0:03:14.8]} 47. Rh5 {[%clk 0:01:43.7]}
47... Ra5 {[%clk 0:03:13.8]} 48. a3 {[%clk 0:01:37.7]} 48... Rb5 {[%clk
0:03:12.8]} 49. b4 {[%clk 0:01:35.7]} 49... a5 {[%clk 0:03:11.4]} 50. Rh7+
{[%clk 0:01:21.9]} 50... Kg6 {[%clk 0:03:09.9]} 51. Rb7 {[%clk 0:01:09]} 51...
axb4 {[%clk 0:03:08.7]} 52. a4 {[%clk 0:01:07.9]} 52... Ra5 {[%clk 0:03:07.8]}
53. Rxb6 {[%clk 0:01:05.7]} 53... Rxa4 {[%clk 0:03:06.9]} 54. Rxe6+ {[%clk
0:01:04.9]} 54... Kf7 {[%clk 0:03:06.4]} 55. Ra6 {[%clk 0:01:04]} 55... Rxa6
{[%clk 0:03:04.6]} 0-1